Cogmind - Beta 16 @@@ ROGUE MODE // 2025.10.25 @ 19:09:47 Player: Shyllaena Result: Destroyed by Y-45 Defender with Beam Rifle Performance ------------- Evolutions (2) 1000 Regions Visited (3) 600 Robots Destroyed (38) 190 Value Destroyed (968) 968 Prototype IDs (1) 20 Alien Tech Used (0) 0 Bonus (0) 0 TOTAL SCORE: 2778 Bonus ------- None Cogmind --------- Core Integrity 0/550 Matter 3/300 Energy 100/100 System Corruption 0% Temperature Cool (9) Movement Core (800) Ox15 Location -8/Materials Parts ------- > --- POWER (2) -------- (None) > --- PROPULSION (3) --- (None) > --- UTILITY (4) ------ High-capacity Storage Unit Visual Processing Unit Improved Power Shielding > --- WEAPON (2) ------- Assault Cannon > --- INVENTORY (20) --- Wheel Improved Heat Sink High-capacity Battery (250) Compact Battery (200) Terrain Scanner Melee Analysis Suite Improved Weapon Shielding Peak State ------------ > --- POWER ------------ Light Nuclear Core > --- PROPULSION ------- Aluminum Leg > --- UTILITY ---------- High-capacity Storage Unit Structural Scanner Visual Processing Unit Improved Power Shielding > --- WEAPON ----------- Heavy Assault Rifle Mini Grenade Launcher > --- INVENTORY -------- Wheel Improved Heat Sink High-capacity Battery Compact Battery Terrain Scanner Melee Analysis Suite Improved Weapon Shielding [Rating: 16] Favorites ----------- Power Ion Engine Engine Ion Engine Power Core Light Nuclear Core Propulsion Aluminum Leg Treads Light Treads Leg Aluminum Leg Wheel Wheel Flight Unit Flight Unit Utility High-capacity Storage Unit Device Structural Scanner Storage High-capacity Storage Unit Processor Visual Processing Unit Protection Improved Power Shielding Weapon Mini Grenade Launcher Energy Gun Small Laser Energy Cannon Light EM Pulse Cannon Ballistic Gun Heavy Assault Rifle Ballistic Cannon Assault Cannon Launcher Mini Grenade Launcher Build | -11 -10 -9 -8 ------- Run | Yrd Mat Mat Mat Slots Evolved 4 | . . 2 2 Power 1 | . . 1 . Propulsion 1 | . . . 1 Utility 2 | . . 1 1 Weapon . | . . . . Parts Attached 45 | 6 16 14 9 Power 8 | 1 3 3 1 Engine 7 | 1 3 3 . Core 1 | . . . 1 Reactor . | . . . . Propulsion 10 | 2 3 3 2 Treads 2 | . . 2 . Leg 5 | . 2 1 2 Wheel 2 | 2 . . . Hover . | . . . . Flight 1 | . 1 . . Utility 15 | 1 7 4 3 Device 8 | . 5 2 1 Storage 2 | 1 1 . . Processor 3 | . 1 1 1 Hackware . | . . . . Protection 2 | . . 1 1 Artifact . | . . . . Weapon 12 | 2 3 4 3 Energy Gun 4 | 1 2 1 . Energy Cannon 1 | . . 1 . Ballistic Gun 5 | 1 1 2 1 Ballistic Cannon 1 | . . . 1 Launcher 1 | . . . 1 Special Weapon . | . . . . Impact Weapon . | . . . . Slashing Weapon . | . . . . Piercing Weapon . | . . . . Special Melee Weapon . | . . . . Unidentified Prototypes 1 | . . 1 . Parts Lost 19 | . 5 4 10 Power 3 | . . . 3 Propulsion 5 | . 2 1 2 Utility 5 | . 2 1 2 Weapon 6 | . 1 2 3 Highest Loss Streak 4 | . 3 3 4 To Critical Strikes . | . . . . Average Backups 5 | 1 2 6 5 Power . | . 1 1 . Propulsion . | . . 1 . Utility 3 | . 1 3 4 Weapon . | . . . . Tool/Special . | . . . . Unused Backups 9 | . 1 3 5 Power 2 | . 1 1 . Propulsion 3 | . . 2 1 Utility 4 | . . . 4 Weapon . | . . . . Tool/Special . | . . . . Average Slot Usage (%) 77 | . 80 95 64 Engine 13 | . 14 19 8 Treads 2 | . . 8 . Leg 8 | . 1 12 9 Wheel 2 | . 11 . . Device 13 | . 16 16 9 Storage 8 | . 3 10 9 Processor 5 | . 4 . 8 Protection 3 | . . 4 4 Energy Gun 4 | . 14 5 . Ballistic Gun 9 | . 13 12 5 Launcher 4 | . . . 8 Peak Build Rating 16 | 6 9 14 16 Average Rating 10 | 3 5 11 11 On Entrance 5 | . 6 9 7 Avg Prop Armor Cover (%) . | . . . . Naked Turns . | . . . . Heaviest Build 62 | 13 49 62 59 Greatest Support 40 | 26 26 40 20 Greatest Overweight (x) 17 | 4 2 3 17 Average Overweight (x) 2 | . 1 1 4 Largest Inventory Capacity 20 | 8 20 20 20 Average Capacity 16 | 6 7 19 20 Most Carried 11 | 4 4 11 11 Average Carried 5 | 1 2 6 5 Final Capacity 20 | 8 5 20 20 Final Carried 11 | 1 4 11 7 Class Distribution -------------------- 53% | Mutant 46% | Scavenger-Mutant Dominant Class ---------------- Scavenger-Mutant | -10/Materials Scavenger-Mutant | -9/Materials Mutant | -8/Materials Resources | -11 -10 -9 -8 ----------- Run | Yrd Mat Mat Mat Matter Collected 891 | 242 246 221 182 Remotely . | . . . . Salvage Created 993 | . 499 68 426 Parts 74 | . 38 7 29 Haulers Intercepted 1 | . . . 1 Recyclers Shooed 1 | . . . 1 Parts Field Recycled . | . . . . Retrieved Matter . | . . . . Parts Self-Destructed . | . . . . Prevented . | . . . . Parts Restored . | . . . . Kills | -11 -10 -9 -8 ------- Run | Yrd Mat Mat Mat Combat Hostiles Destroyed 24 | . 13 3 8 Guns 13 | . 13 . . Cannons 4 | . . 3 1 AOE 7 | . . . 7 Classes Destroyed 9 | . 4 . 5 Worker 2 | . . . 2 Builder 2 | . 1 . 1 Hauler 1 | . . . 1 Recycler 1 | . . . 1 Watcher 8 | . 3 1 4 Swarmer 9 | . 6 3 . Grunt 12 | . 7 . 5 Sentry 1 | . . . 1 Hunter 2 | . . . 2 Best Kill Streak 6 | . 5 2 6 Combat Bots Only 4 | . 4 2 4 Max Kills in Single Turn 3 | . 1 1 3 Gunslinging . | . . . . Exploded 2 | . . . 2 Melee . | . . . . Uniques/NPCs Destroyed . | . . . . Combat | -11 -10 -9 -8 -------- Run | Yrd Mat Mat Mat Hostile Shots Fired 292 | . 106 86 100 Missed 85 | . 30 25 30 Hits 207 | . 76 61 70 Projectile 207 | . 76 61 70 Critical Strikes 5 | . 2 . 3 Actively Blocked 1 | . . . 1 Damage Taken 3103 | . 757 935 1411 Core 864 | . 201 108 555 Absorbed by Shields . | . . . . Redirected to Shielding 38 | . . . 38 Regen/Repaired (Parts) 15 | . 15 . . Core Remaining (%) 64 | 100 19 73 . Volleys Fired 116 | . 55 16 45 Largest 2 | . 2 2 2 Hottest 76 | . 60 76 53 Shots Fired 195 | . 105 28 62 Gun 162 | . 105 24 33 Cannon 9 | . . 4 5 Launcher 24 | . . . 24 Special . | . . . . Kinetic 114 | . 53 23 38 Thermal 33 | . 33 . . Explosive 24 | . . . 24 Electromagnetic 24 | . 19 5 . Robot Hit Streak 9 | . 8 5 9 Robot Miss Streak 5 | . 4 2 5 Penetration Max . | . . . . Secondary Targets 3 | . 3 . . Max Gunslinging Chain 1 | . 1 . . Shots Hit Robots 116 | . 65 14 37 Core Hits 76 | . 33 5 38 Critical Kills 1 | . . . 1 Critical Parts Destroyed . | . . . . Critical Strikes 2 | . 1 . 1 Destroy 1 | . . . 1 Corrupt 1 | . 1 . . Melee Attacks . | . . . . Impact . | . . . . Slashing . | . . . . Piercing . | . . . . Sneak Attacks . | . . . . Combat Hostiles . | . . . . Follow-up Attacks . | . . . . Damage Inflicted 2520 | . 670 184 1666 Guns 1058 | . 668 127 263 Cannons 136 | . . 57 79 Explosions 1313 | . . . 1313 Melee . | . . . . Ramming 13 | . 2 . 11 Kinetic 717 | . 248 127 342 Thermal 263 | . 263 . . Explosive 1313 | . . . 1313 Electromagnetic 214 | . 157 57 . Impact . | . . . . Slashing . | . . . . Piercing . | . . . . Highest Corruption . | . . . . Average Corruption . | . . . . Corruption Purged . | . . . . Corruption Blocked . | . . . . Overload Shots . | . . . . Overflow Damage 65 | . . 54 11 Projectiles . | . . . . Explosions 65 | . . 54 11 Melee . | . . . . Knockbacks 2 | . . . 2 Impact . | . . . . Kinetic 2 | . . . 2 Secondary . | . . . . Self-Inflicted Damage 440 | . 1 98 341 Shots 10 | . . 1 9 Rammed 1 | . 1 . . Targets Rammed 5 | . 1 . 4 Kicked 4 | . . . 4 Crushed . | . . . . Highest Temperature 85 | . 85 29 23 Average Temperature 22 | . 27 13 6 Received Heat Transfer 780 | . 240 171 369 Siege Activations . | . . . . Martial Activations . | . . . . Shielding Activations . | . . . . Robots Disrupted . | . . . . Combat Hostiles . | . . . . Robots Corrupted . | . . . . Combat Hostiles . | . . . . Parts Fried . | . . . . Impact Corruptions . | . . . . Robots Melted . | . . . . Combat Hostiles . | . . . . Parts Melted 1 | . 1 . . Heat Transferred 600 | . 600 . . Parts Sabotaged . | . . . . Parts Stolen . | . . . . Parts Stripped . | . . . . Power Chain Reactions . | . . . . Alert | -11 -10 -9 -8 ------- Run | Yrd Mat Mat Mat Maximum Alert Level 1 | . . . 1 Low Security (%) 99 | 100 100 100 99 Level 1 . | . . . . Level 2 . | . . . . Level 3 . | . . . . Level 4 . | . . . . Level 5 . | . . . . High Security . | . . . . Max Security . | . . . . Peak Influence 202 | . 196 71 202 Initial 40 | . . 40 . Average 54 | . 109 13 56 Influence Increases 1000 | . 398 128 474 Destroy 0b10 Robot/C 480 | . 260 60 160 Destroy 0b10 Robot/NC 70 | . 20 5 45 Destroy Leader 138 | . 56 12 70 Successful Hack 2 | . 2 . . Disable Machine 60 | . 15 30 15 Destroy Structure 190 | . . 21 169 Lose Combat Pursuer 60 | . 45 . 15 Influence Decreases 958 | . 300 226 432 Entered New Map 58 | . . 58 . Time Decay 750 | . 250 158 342 Lost Part 150 | . 50 10 90 Squads Dispatched 7 | . 1 3 3 Investigation 2 | . . 2 . Extermination . | . . . . Reinforcement 3 | . 1 1 1 Assault . | . . . . Garrison 2 | . . . 2 Intercept . | . . . . Searches Triggered . | . . . . Construction Impeded . | . . . . Haulers Reinforced . | . . . . Active Scanning Responses . | . . . . Cargo Convoy Interrupts . | . . . . Stealth | -11 -10 -9 -8 --------- Run | Yrd Mat Mat Mat Distress Signals 8 | . 2 3 3 Communications Jammed . | . . . . Distress Signals . | . . . . Times Spotted 54 | . 21 11 22 Peak Tracking Total 6 | . 6 4 3 Tactical Retreats 5 | . 2 2 1 ECM-based Alert Blocks 3 | . . 3 . Traps | -11 -10 -9 -8 ------- Run | Yrd Mat Mat Mat Traps Triggered . | . . . . Indirectly . | . . . . Trap Hack Attempts . | . . . . Triggered . | . . . . Disarmed . | . . . . Reprogrammed . | . . . . Reused . | . . . . Traps Extracted . | . . . . Installed . | . . . . Triggered . | . . . . Machines | -11 -10 -9 -8 ---------- Run | Yrd Mat Mat Mat Machines Disabled 4 | . 1 2 1 Max in Single Turn 2 | . 1 2 1 Machines Repaired . | . . . . Machines Dismantled . | . . . . Machines Sabotaged . | . . . . Overloaded Fab Kills . | . . . . Hacking | -11 -10 -9 -8 --------- Run | Yrd Mat Mat Mat Machines Accessed 2 | . 2 . . Terminals 1 | . 1 . . Fabricators . | . . . . Repair Stations 1 | . 1 . . Recycling Units . | . . . . Scanalyzers . | . . . . Garrison Access . | . . . . Total Hacks 5 | . 5 . . Successful 4 | . 4 . . Failed 1 | . 1 . . Catastrophic . | . . . . Database Lockouts . | . . . . Manual . | . . . . Terminals 3 | . 3 . . Fabricators . | . . . . Repair Stations 2 | . 2 . . Recycling Units . | . . . . Scanalyzers . | . . . . Garrison Access . | . . . . Terminal Hacks 2 | . 2 . . Record 2 | . 2 . . Fabricator Hacks . | . . . . Repair Station Hacks 2 | . 2 . . Scan Component 1 | . 1 . . Repair 1 | . 1 . . Recycling Unit Hacks . | . . . . Scanalyzer . | . . . . Garrison Access Hacks . | . . . . Unauthorized Hacks . | . . . . Terminals . | . . . . Fabricators . | . . . . Repair Stations . | . . . . Recycling Units . | . . . . Scanalyzers . | . . . . Garrison Access . | . . . . Data Cores Recovered . | . . . . Used . | . . . . Hacking Detections 1 | . 1 . . Full Trace Events . | . . . . Feedback Events . | . . . . Feedback Blocked . | . . . . Robot Schematics Acquired . | . . . . Robots Built . | . . . . Authchips . | . . . . Time . | . . . . Total Robot Build Rating . | . . . . Part Schematics Acquired . | . . . . Parts Built . | . . . . Authchips . | . . . . Time . | . . . . Total Part Build Rating . | . . . . Part Studies Acquired . | . . . . Parts Repaired 1 | . 1 . . Time 26 | . 26 . . Parts Recycled . | . . . . Recycled Matter . | . . . . Retrieved Matter . | . . . . Retrieved Components . | . . . . Parts Scanalyzed . | . . . . Part Schematics Acquired . | . . . . Parts Damaged . | . . . . Bothacking | -11 -10 -9 -8 ------------ Run | Yrd Mat Mat Mat Used RIF Installer . | . . . . Robots Hacked . | . . . . Non-combat . | . . . . Combat . | . . . . Robot Hacks Applied . | . . . . Relay Couplers Released . | . . . . Fabnet Peak Effective % . | . . . . Robots Rewired . | . . . . Allies Hacked . | . . . . Hacks Repelled . | . . . . Allies | -11 -10 -9 -8 -------- Run | Yrd Mat Mat Mat Total Allies . | . . . . Largest Group . | . . . . Highest-Rated Group . | . . . . Highest-Rated Ally . | . . . . Total Orders . | . . . . Ally Attacks . | . . . . Total Damage . | . . . . Kills . | . . . . Allies Corrupted . | . . . . Allies Melted . | . . . . Intel | -11 -10 -9 -8 ------- Run | Yrd Mat Mat Mat Active Infowar (turns) 2358 | . 432 709 1217 Optics 1376 | . 175 . 1201 Sensors 693 | . . 693 . Terrain 247 | . 232 . 15 Structural 1507 | . 231 134 1142 ECM 436 | . 13 287 136 Robot Analysis Total . | . . . . Derelict Logs Recovered . | . . . . Drone Launches . | . . . . Drone Recoveries . | . . . . Exploration | -11 -10 -9 -8 ------------- Run | Yrd Mat Mat Mat Turns Passed 2647 | 64 583 770 1230 Spaces Moved 891 | 53 315 265 258 Core 184 | 28 147 . 9 Treads 119 | . . 119 . Legs 419 | . 24 146 249 Wheels 162 | 25 137 . . Hover . | . . . . Flight 7 | . 7 . . Fastest Speed 50 | 50 80 120 260 Average Speed 245 | 88 122 253 418 Slowest Speed 900 | 250 150 330 900 Overloaded Moves . | . . . . Propulsion Burnouts . | . . . . Robots Hopped . | . . . . Potential Cave-ins . | . . . . Cave-ins Triggered . | . . . . Exploration Rate (%) 23 | 4 38 25 27 Regions Visited 3 Branch Regions . Pre-discovered Areas . | . . . . Known Exits Taken . | . . . . Unknown Exits Taken 3 | 1 1 1 . Scrap Searched . | . . . . Spaces Dug . | . . . . Terrain Destroyed 245 | . . 22 223 Melee . | . . . . Projectile 2 | . . . 2 AOE 243 | . . 22 221 Terrain Rammed . | . . . . Walls Destroyed . | . . . . Machines Disabled . | . . . . Actions | -11 -10 -9 -8 --------- Run | Yrd Mat Mat Mat Total 1152 | 71 414 333 334 Wait . | . . . . Move 888 | 52 314 264 258 Hop . | . . . . Pick Up 57 | 9 18 21 9 Fast Attach . | . . . . Attach 27 | 8 7 3 9 Detach . | . . . . Swap 35 | . 12 19 4 Drop 24 | 2 7 10 5 Fire 116 | . 55 16 45 Melee . | . . . . Ram 1 | . 1 . . Kick 4 | . . . 4 Crush . | . . . . Escape Stasis . | . . . . Rewire . | . . . . Trap . | . . . . Miscellaneous . | . . . . Route ------- -11/Scrapyard -10/Materials -9/Materials (discovered 2 exits: [*Mat] / [*Sto]) -8/Materials History --------- Turn | Location | Event 3 | -11/Scrapyard | Discovered new exit (range 16) 65 | -11/Scrapyard | Entered Materials 304 | -10/Materials | Build established: Mutant 328 | -10/Materials | Core integrity fell below 50% 352 | -10/Materials | Lost 3 parts (2n1w) 548 | -10/Materials | Repaired Heat Sink 577 | -10/Materials | Discovered new exit (range 6) 590 | -10/Materials | Core integrity fell below 20% 648 | -10/Materials | Entered another Materials area 648 | -9/Materials | Evolved 2 slots: Power x1, Utility x1 684 | -9/Materials | Build established: Scavenger-Mutant 1033 | -9/Materials | Discovered new exit (range 5) 1040 | -9/Materials | Discovered new exit (range 11) 1415 | -9/Materials | Lost 3 parts (1n1u1w) 1418 | -9/Materials | Entered another Materials area 1418 | -8/Materials | Evolved 2 slots: Propulsion x1, Utility x1 1479 | -8/Materials | Garrison activated, responded to threat 1626 | -8/Materials | Lost 4 parts (1p1n1u1w) 1870 | -8/Materials | Build established: Mutant 2596 | -8/Materials | Garrison activated, responded to threat 2605 | -8/Materials | Core integrity fell below 50% 2626 | -8/Materials | Core integrity fell below 20% 2644 | -8/Materials | Lost 4 parts (1p1u2w) 2648 | -8/Materials | Destroyed by Y-45 Defender with Beam Rifle Last Messages --------------- K-01 Serf collects debris. Critical hit (Burn: +37). G-47 Trooper knocked back. K-01 Serf collects debris. G-47 Trooper knocked back. K-01 Serf collects debris. U-05 Engineer builds a Wall. G-47 Trooper destroyed. K-01 Serf collects debris. [Achievement: Oops] K-01 Serf collects debris. U-05 Engineer lays Concrete. U-05 Engineer builds a Wall. U-05 Engineer lays Concrete. U-05 Engineer builds a Wall. U-05 Engineer lays Concrete. K-01 Serf collects debris. U-05 Engineer lays Concrete. K-01 Serf collects debris. U-05 Engineer builds a Wall. Map ----- +----------------------------------------------------+ | ?????????????????????????????????????????????????? | | ?????????????????????????????????????????????????? | | ?????????????????????????????????????????????????? | | ?????????????????????????????????????????????????? | | ?? ##????????????????????????????????????????????? | | ?? ###???????????????????????????????????????????? | | ?? ##????????????????????????????????????????????? | | ? ##????????????????????????????????????????????? | | ###???????????????????????????????????????????? | | ###???????????????????????????????????????????? | | ##???????????????????????????????????????????? | | "" ##???????????????????????????????????????????? | | T ##???????###########?????????????????????????? | | ##??????############?????????????????????????? | | ####????## ##?????????????????????????? | | # # ####????## """ ##?????????????????????????? | | ##????## "G" ##?????????????????????????? | | ## ######## " " ##?????????????????????????? | | ############## ##?????????????????????????? | | + """ ##?????????????????????????? | | ############ # w """ ###???# ?????????????????? | | # # # ## # # "! ############????????????? | | ## # ### # # =] #### ############???????? | | # ###### ## ## ## %% # ###########??????? | | #### ^^ =k % Y u r ?????? | | #### ^^ k @ *![k ?????? | | #### ^^u % u [%k ?????? | | # # #####+######## ## =## #######????????? | | # # ## # ## # T ##????????? | | # # ## # ## ## ##????????? | | # ## ## + """ ## ##?? ##????????? | | # # # """ ## ##??? == ##????????? | | # # ## # """ ## ##?????== ##????????? | | # # # # ## ##??????? #?????????? | | #####+### # """ ## ##????????#?????????? | | ## ## """ ## ##??????????????????? | | ## """"" """"" ## """ ## ##??????????????????? | | # """"" """"" ## ## ##??????????????????? | | # """"" """"" ## ## ##??????????????????? | | # ########### ##??????????????????? | | # ########### ##??????????????????? | | #################???????? ??????????????????? | | # = #######???????? ???????????????????? | | # ##????????????? ???????????????????? | | # ##????????????? ####???????????????????? | | + [ ##????????????? ???????????????????????? | | # ! ##?????????????????????????????????????? | | # ##?????????????????????????????????????? | | # ##?????????????????????????????????????? | | # ] ##?????????????????????????????????????? | +----------------------------------------------------+ Best States ------------- Heat Dissipation 42 Energy Generation 17 Energy Capacity 415 Matter Stores 300 Matter Capacity 300 Sight Range 18 Robot Scan Range 14 Terrain Scan Range 14 Terrain Scan Density 10 ECM Strength 1 Armor Coverage 150 Power Shielding 66 Evasion (%) 55 Targeting Accuracy 5 Recoil Reduction 2 Item Schematics ----------------- None Robot Schematics ------------------ None Fabricated ------------ Nothing Repaired ---------- Heat Sink | 50% | -10/Materials Studied --------- None Alien Tech Used ----------------- None Achievements -------------- For Emergencies Only Ghost 'Em Let's See Who's Tougher Oops Organ Harvest Remodeling Resistances Are Futile Spot Them First That Tickles There's More Where That Came From Challenges ------------ None Game ------ Seed ZeronetPointyClaw Manual? 0 Play Time 00:35:21 Cumulative 4.4 hours Start 2025.10.25 @ 18:35:58 End 2025.10.25 @ 19:09:47 Sessions 1 Manual Loads 0 Difficulty Rogue Special Mode None Game No. 9 Rogue 9 Adventurer 0 Explorer 0 Win Type - Total 0 Types 0/0/0/0/0/0/0/0/0/0 Lore% 5 Gallery% 6 Achievement% 6 Wizard Run 0 Options --------- Layout 1 ASCII 0 Keyboard 0 Movement Mouse Keybinds 0 Fullscreen 1 Font 32/SmallcapsGlow Map View 50x35 Zoom Use 0% Tactical HUD 0 Map Filters NONE Filters NONE Steam 1 RUN: 46f2172e-1927-42db-ac11-08d3ae37215f